fUSD/lending_fUSD_20240704
["ID","MTS","AMOUNT","RATE_DAILY","PERIOD"]
[331098852,1720078298127,-659.97,0.00021917,4]
[331098853,1720078298136,-500.0,0.00021917,4]
[331098854,1720078298146,-659.97,0.00021917,4]
[331098855,1720078298156,-500.0,0.00021917,4]
[331098856,1720078298166,-659.97,0.00021917,4]
[331098857,1720078298175,-500.0,0.00021917,4]
[331098858,1720078298184,-659.97,0.00021917,4]
[331098859,1720078298193,-500.0,0.00021917,4]
[331098860,1720078298202,-63.55783996,0.00021917,4]
[331098861,1720078298217,-489.02686996,0.00021917,4]
[331098862,1720078298250,-107.38529008,0.00021917,4]
[331098863,1720078298260,-500.0,0.00021917,4]
[331098864,1720078298269,-659.97,0.00021917,4]
[331098865,1720078298278,-191.48439275,0.00021917,4]
[331098866,1720078298291,-308.51560725,0.00021917,4]
[331098867,1720078298305,-100.62633029,0.00021917,4]
[331098868,1720078298317,-559.34366971,0.00021917,4]
[331098869,1720078298327,-659.97,0.00021917,4]
[331098870,1720078298337,-659.97,0.00021917,4]
[331098871,1720078298347,-239.93840974,0.00021917,4]
[331098872,1720078298356,-642.26,0.00021917,4]
[331098873,1720078298366,-659.97,0.00021917,4]
[331098874,1720078298376,-642.26,0.00021917,4]
[331098875,1720078298385,-659.97,0.00021917,4]
[331098876,1720078298395,-500.0,0.00021917,4]
[331098877,1720078298405,-642.26,0.00021917,4]
[331098878,1720078298414,-171.6712401,0.00021917,4]
[331098879,1720078298429,-488.2987599,0.00021917,4]
[331098880,1720078298438,-500.0,0.00021917,4]
[331098881,1720078298448,-642.26,0.00021917,4]
[331098882,1720078298458,-659.97,0.00021917,4]
[331098883,1720078298472,-158.77045492,0.00021917,4]
[331098884,1720078298482,-642.26,0.00021917,4]
[331098885,1720078298492,-659.97,0.00021917,4]
[331098886,1720078298501,-500.0,0.00021917,4]
[331098887,1720078298512,-642.26,0.00021917,4]
[331098888,1720078298521,-500.0,0.00021917,4]
[331098889,1720078298531,-642.26,0.00021917,4]
[331098890,1720078298540,-500.0,0.00021917,4]
[331098891,1720078298550,-500.0,0.00021917,4]
[331098892,1720078298562,-500.0,0.00021917,4]
[331098893,1720078298571,-659.97,0.00021917,4]
[331098894,1720078298581,-642.26,0.00021917,4]
[331098895,1720078298590,-500.0,0.00021917,4]
[331098896,1720078298599,-500.0,0.00021917,4]
[331098897,1720078298609,-500.0,0.00021917,4]
[331098898,1720078298619,-659.97,0.00021917,4]
[331098899,1720078298629,-642.26,0.00021917,4]
[331098900,1720078298639,-508.38041685,0.00021917,4]
[331098901,1720078298649,-500.0,0.00021917,4]
[331098902,1720078298659,-500.0,0.00021917,4]
[331098903,1720078298668,-642.26,0.00021917,4]
[331098904,1720078298678,-500.0,0.00021917,4]
[331098905,1720078298687,-500.0,0.00021917,4]
[331098906,1720078298697,-642.26,0.00021917,4]
[331098907,1720078298706,-500.0,0.00021917,4]
[331098908,1720078298716,-500.0,0.00021917,4]
[331098909,1720078298725,-642.26,0.00021917,4]
[331098910,1720078298735,-500.0,0.00021917,4]
[331098911,1720078298744,-500.0,0.00021917,4]
[331098912,1720078298754,-500.0,0.00021917,4]
[331098913,1720078298763,-642.26,0.00021917,4]
[331098914,1720078298773,-330.03664007,0.00021917,4]
[331098915,1720078298792,-169.96335993,0.00021917,4]
[331098916,1720078298802,-642.26,0.00021917,4]
[331098917,1720078298813,-500.0,0.00021917,4]
[331098918,1720078298822,-500.0,0.00021917,4]
[331098919,1720078298831,-500.0,0.00021917,4]
[331098920,1720078298841,-642.26,0.00021917,4]
[331098921,1720078298850,-500.0,0.00021917,4]
[331098922,1720078298859,-366.51664007,0.00021917,4]
[331098923,1720078298998,-133.48335993,0.00021917,4]
[331098924,1720078299008,-500.0,0.00021917,4]
[331098925,1720078299017,-172.55370104,0.00021917,4]
[331098926,1720078299031,-469.70629896,0.00021917,4]
[331098927,1720078299040,-500.0,0.00021917,4]
[331098928,1720078299050,-500.0,0.00021917,4]
[331098929,1720078299061,-500.0,0.00021917,4]
[331098930,1720078299071,-500.0,0.00021917,4]
[331098931,1720078299081,-642.26,0.00021917,4]
[331098932,1720078299090,-500.0,0.00021917,4]
[331098933,1720078299100,-500.0,0.00021917,4]
[331098934,1720078299110,-500.0,0.00021917,4]
[331098935,1720078299120,-642.26,0.00021917,4]
[331098936,1720078299130,-500.0,0.00021917,4]
[331098937,1720078299139,-8.0294056,0.00021917,4]
[331098938,1720078299154,-491.9705944,0.00021917,4]
[331098939,1720078299163,-500.0,0.00021917,4]
[331098940,1720078299173,-500.0,0.00021917,4]
[331098941,1720078299182,-127.98667549,0.00021917,4]
[331098942,1720078299195,-514.27332451,0.00021917,4]
[331098943,1720078299205,-500.0,0.00021917,4]
[331098944,1720078299216,-572.68550823,0.00021917,4]
[331098945,1720078299226,-500.0,0.00021917,4]
[331098946,1720078299236,-642.26,0.00021917,4]
[331098947,1720078299246,-500.0,0.00021917,4]
[331098948,1720078299256,-500.0,0.00021917,4]
[331098949,1720078299266,-500.0,0.00021917,4]
[331098950,1720078299276,-642.26,0.00021917,4]
[331098951,1720078299286,-500.0,0.00021917,4]
[331098952,1720078299296,-500.0,0.00021917,4]
[331098953,1720078299306,-500.0,0.00021917,4]
[331098954,1720078299315,-153.184091,0.00021917,2]
[331098955,1720078299325,-642.26,0.00021917,4]
[331098956,1720078299335,-500.0,0.00021917,4]
[331098957,1720078299345,-500.0,0.00021917,4]
[331098958,1720078299355,-500.0,0.00021917,4]
[331098959,1720078299365,-642.26,0.00021917,4]
[331098960,1720078299375,-500.0,0.00021917,4]
[331098961,1720078299385,-500.0,0.00021917,4]
[331098962,1720078299396,-500.0,0.00021917,4]
[331098963,1720078299406,-642.33,0.00021917,4]
[331098964,1720078299416,-500.0,0.00021917,4]
[331098965,1720078299426,-500.0,0.00021917,4]
[331098966,1720078299436,-561.94,0.00021917,4]
[331098967,1720078299446,-500.0,0.00021917,4]
[331098968,1720078299456,-500.0,0.00021917,4]
[331098969,1720078299468,-500.0,0.00021917,4]
[331098970,1720078299478,-561.94,0.00021917,4]
[331098971,1720078299488,-500.0,0.00021917,4]
[331098972,1720078299497,-500.0,0.00021917,4]
[331098973,1720078299508,-561.94,0.00021917,4]
[331098974,1720078299517,-500.0,0.00021917,4]
[331098975,1720078299526,-500.0,0.00021917,4]
[331098976,1720078299535,-500.0,0.00021917,4]
[331098977,1720078299545,-561.94,0.00021917,4]
[331098978,1720078299558,-500.0,0.00021917,4]
[331098979,1720078299567,-500.0,0.00021917,4]
[331098980,1720078299576,-500.0,0.00021917,4]
[331098981,1720078299586,-500.0,0.00021917,4]
[331098982,1720078299595,-500.0,0.00021917,4]
[331098983,1720078299605,-561.94,0.00021917,4]
[331098984,1720078299614,-500.0,0.00021917,4]
[331098985,1720078299623,-500.0,0.00021917,4]
[331098986,1720078299632,-500.0,0.00021917,4]
[331098987,1720078299641,-500.0,0.00021917,4]
[331098988,1720078299650,-344.75,0.00021917,4]
[331098989,1720078299660,-561.94,0.00021917,4]
[331098990,1720078299669,-178.34802209,0.00021917,4]
[331098991,1720078299679,-500.0,0.00021917,4]
[331098992,1720078299689,-500.0,0.00021917,4]
[331098993,1720078299698,-500.0,0.00021917,4]
[331098994,1720078299707,-561.94,0.00021917,4]
[331098995,1720078299716,-500.0,0.00021917,4]
[331098996,1720078299725,-500.0,0.00021917,4]
[331098997,1720078299734,-500.0,0.00021917,4]
[331098998,1720078299743,-561.94,0.00021917,4]
[331098999,1720078299753,-435.49,0.00021917,4]
[331099000,1720078299762,-500.0,0.00021917,4]
[331099001,1720078299771,-561.94,0.00021917,4]
[331099002,1720078299781,-500.0,0.00021917,4]
[331099003,1720078299791,-500.0,0.00021917,4]
[331099004,1720078299800,-561.94,0.00021917,4]
[331099005,1720078299815,-500.0,0.00021917,4]
[331099006,1720078299824,-500.0,0.00021917,4]
[331099007,1720078299834,-561.94,0.00021917,4]
[331099008,1720078299844,-500.0,0.00021917,4]
[331099009,1720078299854,-561.94,0.00021917,4]
[331099010,1720078299863,-500.0,0.00021917,4]
[331099011,1720078299873,-561.94,0.00021917,4]
[331099012,1720078299883,-500.0,0.00021917,4]
[331099013,1720078299892,-561.94,0.00021917,4]
[331099014,1720078299902,-500.0,0.00021917,4]
[331099015,1720078299912,-561.94,0.00021917,4]
[331099016,1720078299922,-500.0,0.00021917,4]
[331099017,1720078299931,-561.94,0.00021917,4]
[331099018,1720078299941,-500.0,0.00021917,4]
[331099019,1720078299951,-561.94,0.00021917,4]
[331099020,1720078299960,-500.0,0.00021917,4]
[331099021,1720078299970,-500.0,0.00021917,4]
[331099022,1720078299982,-561.94,0.00021917,4]
[331099023,1720078299992,-451.28254087,0.00021917,4]
[331099024,1720078300002,-462.57986561,0.00021917,4]
[331099025,1720078300032,-37.42013439,0.00021917,4]
[331099026,1720078300042,-500.0,0.00021917,4]
[331099027,1720078300052,-561.94,0.00021917,4]
[331099028,1720078300064,-447.60026292,0.00021917,4]
[331099029,1720078300077,-52.39973708,0.00021917,4]
[331099030,1720078300086,-500.0,0.00021917,4]
[331099031,1720078300096,-561.94,0.00021917,4]
[331099032,1720078300105,-500.0,0.00021917,4]
[331099033,1720078300114,-561.94,0.00021917,4]
[331099034,1720078300123,-130.59842207,0.00021917,4]
[331099035,1720078300136,-369.40157793,0.00021917,4]
[331099036,1720078300145,-14.47139122,0.00021917,4]
[331099037,1720078300156,-547.46860878,0.00021917,4]
[331099038,1720078300165,-127.32568695,0.00021917,4]
[331099039,1720078300176,-372.67431305,0.00021917,4]
[331099040,1720078300185,-500.0,0.00021917,4]
[331099041,1720078300194,-145.62568695,0.00021917,4]
[331099042,1720078300205,-416.31431305,0.00021917,4]
[331099043,1720078300214,-500.0,0.00021917,4]
[331099044,1720078300223,-500.0,0.00021917,4]
[331099045,1720078300232,-46.63568695,0.00021917,4]
[331099046,1720078300243,-515.46431305,0.00021917,4]
[331099047,1720078300252,-500.0,0.00021917,4]
[331099048,1720078300261,-243.28907035,0.00021917,4]
[331099049,1720078300273,-256.71092965,0.00021917,4]
[331099050,1720078300282,-500.0,0.00021917,4]
[331099051,1720078300291,-491.24829681,0.00021917,4]
[331099054,1720078544272,301.21176456,0.000112,2]
[331099095,1720079322107,-582.35470007,0.00011893,2]
[331099096,1720079337085,179.29831808,0.00011199,2]
[331099099,1720079431781,-58.19529993,0.00011893,2]
[331099101,1720079431792,-250.0,0.00013572,2]
[331099103,1720079431801,-200.0,0.00013699,2]
[331099105,1720079431814,-500.0,0.00013705,2]
[331099106,1720079431824,-1085.98,0.00013753,2]
[331099107,1720079431833,-2326.04,0.0001384,2]
[331099108,1720079431844,-1000.0,0.00013869,2]
[331099109,1720079431853,-50000.0,0.00013869,2]
[331099110,1720079431862,-5768.05262626,0.0001387,2]
[331099111,1720079431872,-2070.63,0.00013879,2]
[331099112,1720079431881,-10000.0,0.00013886,2]
[331099113,1720079431892,-4534.84459588,0.000139,2]
[331099114,1720079431902,-1000.0,0.000139,2]
[331099115,1720079431911,-360.62326801,0.000139,2]
[331099116,1720079431920,-159.80814446,0.000139,2]
[331099117,1720079431929,-447.86,0.00013927,2]
[331099118,1720079431939,-1798.48,0.00013927,2]
[331099119,1720079431948,-16429.74,0.00013945,2]
[331099120,1720079431958,-13142.89470487,0.00013957,2]
[331099121,1720079431967,-175.20791801,0.00013957,2]
[331099122,1720079431976,-309.23799785,0.00013957,2]
[331099123,1720079431986,-191.46738629,0.00013957,2]
[331099124,1720079431995,-150.0,0.00013973,2]
[331099125,1720079432005,-388.58987389,0.00013989,2]
[331099126,1720079432014,-267.92913545,0.0001399,2]
[331099127,1720079432023,-267.92913545,0.0001399,2]
[331099128,1720079432032,-267.92913545,0.0001399,2]
[331099129,1720079432041,-604.99,0.0001399,2]
[331099130,1720079432050,-604.99,0.0001399,2]
[331099131,1720079432060,-604.99,0.0001399,2]
[331099132,1720079432070,-604.99,0.0001399,2]
[331099134,1720079432079,-604.99,0.0001399,2]
[331099136,1720079432088,-500.0,0.00013999,2]
[331099146,1720079432097,-500.0,0.00013999,2]
[331099147,1720079432327,-500.0,0.00013999,2]
[331099148,1720079432336,-309.05316977,0.00013999,2]
[331099149,1720079432346,-581.86296108,0.00013999,2]
[331099150,1720079432355,-500.0,0.00013999,2]
[331099151,1720079432366,-416.65956651,0.00013999,2]
[331099152,1720079432376,-596.95969933,0.00013999,2]
[331099153,1720079432386,-150.0,0.00013999,2]
[331099154,1720079432395,-150.0,0.00013999,7]
[331099155,1720079432405,-150.0,0.00013999,7]
[331099156,1720079432414,-137404.5045557,0.00014,2]
[331099157,1720079432428,-49469.8797289,0.00014,2]
[331099158,1720079432439,-47324.08572949,0.00014,2]
[331099159,1720079432450,-1174.06,0.00014,2]
[331099160,1720079432462,-553667.31619797,0.00014,2]
[331099161,1720079432474,-587.41248,0.00014,2]
[331099162,1720079432489,-4415.41605247,0.00014,2]
[331099163,1720079432504,-781.03258899,0.00014,2]
[331099164,1720079432515,-506.58096069,0.00014,2]
[331099165,1720079432526,-2820.0,0.00014,2]
[331099166,1720079432546,-1284.35585131,0.00014,2]
[331099167,1720079432557,-726.72999162,0.00014,2]
[331099168,1720079432568,-2194.55656055,0.00014,2]
[331099169,1720079432579,-2752.76427051,0.00014,2]
[331099177,1720079437796,-814.83709404,0.00013472,2]
[331099178,1720079437807,-565.84418615,0.00014,2]
[331099179,1720079437820,-2018.01586,0.00014,2]
[331099180,1720079437832,-3240.22193111,0.00014,2]
[331099181,1720079437844,-308.6,0.00014,2]
[331099182,1720079437855,-2450.76963214,0.00014,2]
[331099183,1720079437872,-343.23316,0.00014,2]
[331099184,1720079438020,-90894.77773588,0.00014,2]
[331099361,1720079439932,-719.26763437,0.00013539,2]
[331099379,1720079440046,-95.56945965,0.00013539,2]
[331099381,1720079440056,-450.49233413,0.00014,2]
[331099387,1720079440105,-627.22,0.00014,2]
[331099395,1720079440167,-4896.92,0.00014,2]
[331099397,1720079440182,-3494.49188174,0.00014,2]
[331099399,1720079440194,-1531.61449012,0.00014,2]
[331099401,1720079440206,-18428.64418698,0.00014,2]
[331099405,1720079440231,-124309.29418572,0.00014,2]
[331099412,1720079440291,-33276.14929742,0.00014,2]
[331099426,1720079440411,-124259.47002143,0.00014,2]
[331099432,1720079440472,-5060.62730203,0.00014,2]
[331099699,1720079442871,-349.52005631,0.00014,2]
[331099705,1720079442887,-600.65926383,0.00014,2]
[331099718,1720079442932,-500.0,0.00014,2]
[331099721,1720079442943,-465.16688216,0.00014,2]
[331099724,1720079442954,-880.36175698,0.00014,2]
[331099728,1720079442965,-730.07140233,0.00014,2]
[331099731,1720079442978,-652.62529538,0.00014,2]
[331099744,1720079443043,-439.52909757,0.00014,2]
[331099754,1720079443102,-1857.46232275,0.00014,2]
[331099767,1720079443216,-524.50138026,0.00014,2]
[331099769,1720079443228,-1181.70649512,0.00014,2]
[331099903,1720079444535,-4675.74706937,0.00014,2]
[331100061,1720079446008,-814.83709402,0.00013605,2]
[331100062,1720079446017,-66001.13824118,0.00014,2]
[331100065,1720079446036,-500.0,0.00013957,2]
[331100067,1720079446047,-784.34273564,0.00013957,2]
[331100085,1720079446204,-291.796505,0.00013957,2]
[331100274,1720079694102,939.42122738,0.00011199,2]
[331100275,1720080229712,9242.06086405,0.00011199,2]
[331100276,1720080237093,1903.22472733,0.00011199,2]
[331100277,1720080295163,17202.47937909,0.00011199,2]
[331100278,1720080331515,608.52,0.00010482,2]
[331100289,1720080445597,9242.06086405,0.00011199,2]
[331100293,1720080466515,1106.46484,0.00011199,2]
[331100306,1720080633026,-250.0,0.00012301,2]
[331100307,1720080633036,-431.67160489,0.00012314,2]
[331100308,1720080633046,-818.32839511,0.0001235,2]
[331100309,1720080633105,-505.08629689,0.0001235,2]
[331100310,1720080633115,-739.28642573,0.00012356,2]
[331100311,1720080633124,-1000.0,0.00012413,2]
[331100312,1720080633134,-188.7724841,0.00012456,2]
[331100313,1720080633147,-171.77,0.00012458,2]
[331100314,1720080633157,-1000.0,0.00012496,2]
[331100315,1720080633166,-150.0,0.00012497,2]
[331100316,1720080633175,-3845.08479328,0.00012497,2]
[331100317,1720080633187,-4458.23572949,0.00012497,2]
[331100319,1720080633281,-39763.64408093,0.00012497,2]
[331100321,1720080633290,-250.0,0.00012509,2]
[331100323,1720080633301,-169.84,0.00012509,2]
[331100325,1720080633310,-282.05,0.00012578,2]
[331100326,1720080633319,-282.05,0.00012613,2]
[331100327,1720080633330,-282.05,0.00012647,2]
[331100329,1720080633339,-999.99,0.00012679,2]
[331100331,1720080633348,-282.05,0.00012682,2]
[331100332,1720080633356,-282.05,0.00012716,2]
[331100333,1720080633366,-608.52,0.00012746,2]
[331100334,1720080633376,-282.05,0.00012751,2]
[331100335,1720080633386,-150.99,0.00012755,2]
[331100336,1720080633395,-499.99,0.00012755,2]
[331100338,1720080633404,-282.05,0.00012785,2]
[331100339,1720080633413,-300.0,0.00012789,2]
[331100340,1720080633423,-308.6,0.0001279,2]
[331100341,1720080633433,-282.05,0.0001282,2]
[331100342,1720080633445,-282.05,0.00012854,2]
[331100343,1720080633454,-282.05,0.00012889,2]
[331100344,1720080633463,-282.05,0.00012923,2]
[331100345,1720080633472,-282.05,0.00012958,2]
[331100346,1720080633481,-282.05,0.00012992,2]
[331100347,1720080633490,-282.05,0.00013027,2]
[331100348,1720080633499,-282.05,0.00013061,2]
[331100349,1720080633510,-282.05,0.00013096,2]
[331100350,1720080633522,-282.05,0.0001313,2]
[331100351,1720080633532,-282.05,0.00013165,2]
[331100352,1720080633543,-150.0,0.00013175,2]
[331100353,1720080633553,-282.05,0.00013199,2]
[331100354,1720080633565,-282.05,0.00013234,2]
[331100355,1720080633574,-600.0,0.000135,4]
[331100356,1720080633584,-594.33,0.00013562,2]
[331100357,1720080633593,-594.33,0.00013565,2]
[331100358,1720080633602,-594.33,0.00013569,2]
[331100359,1720080633614,-594.33,0.00013573,2]
[331100360,1720080633625,-594.33,0.00013576,2]
[331100361,1720080633636,-594.33,0.0001358,2]
[331100362,1720080633645,-594.33,0.00013583,2]
[331100363,1720080633902,-4413.0,0.00013584,2]
[331100364,1720080633912,-594.33,0.00013587,2]
[331100365,1720080633921,-594.33,0.0001359,2]
[331100366,1720080633930,-594.33,0.00013594,2]
[331100367,1720080633940,-594.33,0.00013598,2]
[331100368,1720080633949,-1217.44202976,0.000136,4]
[331100369,1720080633962,-82.55797024,0.000136,4]
[331100370,1720080633971,-594.33,0.00013601,2]
[331100371,1720080633981,-594.33,0.00013605,2]
[331100372,1720080633990,-594.33,0.00013608,2]
[331100373,1720080634000,-594.33,0.00013612,2]
[331100374,1720080634009,-594.33,0.00013615,2]
[331100375,1720080634019,-594.33,0.00013619,2]
[331100376,1720080634028,-594.33,0.00013622,2]
[331100377,1720080634038,-594.33,0.00013626,2]
[331100378,1720080634047,-594.33,0.0001363,2]
[331100379,1720080634056,-173.21,0.00013649,2]
[331100380,1720080634066,-2751.0,0.00013699,2]
[331100381,1720080634076,-188.98,0.00013699,2]
[331100382,1720080634085,-200.0,0.00013699,2]
[331100383,1720080634095,-542.99,0.00013699,2]
[331100384,1720080634104,-674.7,0.00013699,5]
[331100385,1720080634114,-2000.0,0.000137,5]
[331100386,1720080634123,-2700.0,0.000138,5]
[331100387,1720080634135,-3786.90045865,0.000138,2]
[331100388,1720080634146,-260.8865,0.000138,2]
[331100389,1720080634155,-1479.87734351,0.000138,2]
[331100390,1720080634181,-892.30034146,0.000138,2]
[331100391,1720080634241,9236.09179501,0.00011199,2]
[331100394,1720080637957,-3272.19415934,0.000138,2]
[331100395,1720080637967,-385.52794989,0.00013842,2]
[331100396,1720080637976,-421.2810705,0.00013892,2]
[331100397,1720080637986,-12755.83421059,0.000139,2]
[331100398,1720080638072,-6120.2395,0.000139,2]
[331100399,1720080638241,-1271.83438954,0.000139,2]
[331100754,1720080642015,-661.43195118,0.000139,2]
[331100756,1720080642026,-337.08999992,0.000139,2]
[331100758,1720080642038,-524.35633115,0.000139,2]
[331100769,1720080642131,-19453.8419154,0.000139,2]
[331100771,1720080642147,-470.68726818,0.000139,2]
[331100798,1720080642411,-58404.68443404,0.000139,2]
[331100800,1720080642421,-1000.0,0.000139,2]
[331100802,1720080642431,-500.0,0.000139,2]
[331100804,1720080642441,-2951.14234774,0.000139,2]
[331100877,1720080643145,-33650.57112402,0.000139,2]
[331100879,1720080643158,-319.57000001,0.000139,2]
[331100898,1720080643326,-100744.65912823,0.000139,2]
[331100900,1720080643336,-37942.1259,0.000139,2]
[331100902,1720080643346,-3400.0,0.000139,5]
[331100904,1720080643355,-255.15681874,0.00013928,2]
[331100906,1720080643364,-8761.92980324,0.00013928,2]
[331100908,1720080643374,-1000.0,0.00013964,2]
[331100910,1720080643383,-2000.0,0.00013973,3]
[331100912,1720080643392,-280.96365295,0.00013982,2]
[331100914,1720080643403,-11631.93269426,0.00013982,2]
[331100916,1720080643412,-191.46738629,0.00013982,2]
[331100918,1720080643421,-159.80814445,0.00013982,2]
[331100920,1720080643432,-1000.0,0.00013999,5]
[331100922,1720080643442,-274.46519158,0.00013999,5]
[331100924,1720080643451,-150.0,0.00013999,2]
[331100926,1720080643460,-150.0,0.00013999,7]
[331100928,1720080643469,-451420.61362738,0.00014,2]
[331100931,1720080643480,-583.86,0.00014,2]
[331100933,1720080643495,-49054.52253702,0.00014,2]
[331100936,1720080643510,-811.02849516,0.00014,2]
[331101115,1720080645183,-314.105432,0.00014,2]
[331101212,1720080647015,-292.57856873,0.00013574,2]
[331101213,1720080647025,-122.42143127,0.00014,2]
[331101214,1720080647037,-362.05636558,0.00014,2]
[331101215,1720080647128,-2133.07562019,0.00014,2]
[331101216,1720080647190,-582.62866,0.00014,2]
[331101217,1720080647305,-500.85447763,0.00014,2]
[331101218,1720080647366,-6028.6047016,0.00014,2]
[331101219,1720080647481,-5880.96757488,0.00014,2]
[331101258,1720080741128,1252.0,0.00026,120]
[331101259,1720080965028,459.78860943,0.00011202,2]
[331101260,1720080971217,151.0,0.00026,120]
[331101261,1720081239770,12263.96799634,0.00011199,2]
[331101262,1720081372581,300.47826733,0.00011199,2]
[331101263,1720081477526,297.39737969,0.00011199,2]
[331101264,1720081505005,3042.83028579,0.00011199,2]
[331101265,1720081517375,561.57,0.00010736,2]
[331101274,1720081661678,1058.66463342,0.00011199,7]
[331101275,1720081727872,800.79764859,0.00011199,2]
[331101278,1720081739929,2200.09526978,0.00011199,2]
[331101279,1720081763059,2377.33116314,0.00011199,2]
[331101280,1720081806297,1822.53675808,0.00011199,2]
[331101281,1720081827087,338.88550438,0.00011199,2]
[331101282,1720081827361,7721.82282139,0.00011199,2]
[331101292,1720081833490,-184.67179423,0.00012273,4]
[331101293,1720081833501,-210.47989525,0.00012273,2]
[331101294,1720081833513,-530.36557167,0.00012302,2]
[331101295,1720081833523,-250.0,0.00012341,2]
[331101296,1720081833534,-168.5,0.00012372,2]
[331101297,1720081833546,-152.48,0.00012546,2]
[331101298,1720081833556,-150.0,0.000126,2]
[331101299,1720081833567,-300.0,0.00012637,2]
[331101300,1720081833578,-200.0,0.00012638,2]
[331101301,1720081833588,-152.48,0.00012655,2]
[331101302,1720081833599,-806.83,0.00012688,2]
[331101303,1720081833609,-180.72,0.00012731,2]
[331101304,1720081833619,-152.48,0.00012764,2]
[331101305,1720081833630,-250.0,0.00012817,2]
[331101306,1720081833640,-200.0,0.00012866,2]
[331101307,1720081833651,-152.48,0.00012873,2]
[331101308,1720081833664,-150.0,0.0001288,2]
[331101309,1720081833674,-150.99,0.00012909,2]
[331101310,1720081833684,-299.99,0.00012909,2]
[331101311,1720081833694,-152.48,0.00012981,2]
[331101312,1720081833710,-561.57,0.00013,2]
[331101313,1720081833720,-1000.0,0.00013027,2]
[331101314,1720081833730,-499.99,0.00013028,2]
[331101315,1720081833739,-152.48,0.0001309,2]
[331101316,1720081833749,-150.0,0.0001316,2]
[331101317,1720081833759,-152.48,0.00013199,2]
[331101318,1720081833769,-1910.0,0.00013219,2]
[331101319,1720081833779,-172.42966663,0.00013285,2]
[331101320,1720081833790,-153.8,0.00013368,2]
[331101321,1720081833800,-172.69,0.00013386,2]
[331101322,1720081833809,-499.99,0.00013386,2]
[331101323,1720081833820,-150.0,0.0001344,2]
[331101324,1720081833830,-500.0,0.000135,4]
[331101325,1720081833840,-516.47958969,0.00013574,2]
[331101326,1720081833854,-983.52041031,0.00013574,2]
[331101327,1720081833865,-209.7986185,0.00013574,2]
[331101328,1720081833875,-1100.0,0.000136,4]
[331101329,1720081833886,-741.84513559,0.0001369,2]
[331101330,1720081833896,-183.51,0.00013699,2]
[331101331,1720081833906,-200.0,0.00013699,2]
[331101332,1720081833916,-725.59292136,0.00013699,2]
[331101333,1720081833929,-274.40707864,0.00013699,2]
[331101334,1720081833939,-1600.0,0.000137,5]
[331101335,1720081833950,-150.0,0.0001372,2]
[331101336,1720081833965,-1000.0,0.000138,2]
[331101337,1720081833975,-2200.0,0.000138,5]
[331101338,1720081833984,-1017.00518322,0.000138,2]
[331101339,1720081834026,-690.28734422,0.00012302,2]
[331101340,1720081834036,-2474.46265645,0.000138,2]
[331101341,1720081834048,-2835.88698071,0.000138,2]
[331101342,1720081834057,-421.2810705,0.000138,2]
[331101343,1720081834067,-5407.15407584,0.000138,2]
[331101344,1720081834076,-313.67045372,0.000138,2]
[331101345,1720081834086,-199.16688941,0.00013849,2]
[331101346,1720081834096,-922.05403,0.0001386,2]
[331101347,1720081834106,-385.52794989,0.00013861,2]
[331101348,1720081834116,-195.68863561,0.00013889,2]